bitfinex-derivatives/quotes_ETHF0:USTF0_20251005
["timestamp","ask_amount","ask_price","bid_price","bid_amount"]
[1759625487509,0.62504,4474.9,4474.8,0.76549931]
[1759625488112,3.60979,4475.4,4475.3,0.7639]
[1759625488414,4.33242591,4475.4,4475.3,0.7639]
[1759625489610,1.12462591,4475.4,4475.3,0.7639]
[1759625491521,1.12462591,4475.4,4475.3,0.3181]
[1759625492416,4.33242591,4475.4,4475.3,0.3181]
[1759625492813,7.27270892,4475.4,4475.3,0.3181]
[1759625497914,7.04970892,4475.4,4475.3,0.5424]
[1759625498116,7.27270892,4475.4,4475.3,0.5424]
[1759625498823,7.27270892,4475.4,4475.3,0.3181]
[1759625499023,8.23777699,4475.4,4475.3,0.5254]
[1759625499224,8.46077699,4475.4,4475.3,0.5254]
[1759625499423,7.27270892,4475.4,4475.3,0.5254]
[1759625502829,7.04970892,4475.4,4475.3,0.7492]
[1759625503026,7.27270892,4475.4,4475.3,0.7492]
[1759625506833,7.27513971,4475.4,4475.3,0.7492]
[1759625507632,7.27513971,4475.4,4475.3,0.3181]
[1759625508334,7.27513971,4475.4,4475.3,0.5254]
[1759625509428,12.27513971,4475.4,4475.3,0.3181]
[1759625510931,12.4522527,4475.4,4475.3,0.3181]
[1759625517041,7.4522527,4475.4,4475.3,0.5254]
[1759625517343,7.4522527,4475.4,4475.3,0.7492]
[1759625518241,7.4522527,4475.4,4475.3,0.5254]
[1759625519441,7.27513971,4475.4,4475.3,0.5254]
[1759625520338,7.27513971,4475.4,4475.3,0.7492]
[1759625522838,7.05213971,4475.4,4475.3,0.7492]
[1759625523041,7.27513971,4475.4,4475.3,0.7492]
[1759625523640,6.87314971,4475.4,4475.3,0.7492]
[1759625523845,3.7098667,4475.4,4475.3,5.7492]
[1759625524045,3.9328667,4475.4,4475.3,5.7492]
[1759625524838,3.7098667,4475.4,4475.3,6.1512]
[1759625525045,0.223,4475.4,4475.3,5.7492]
[1759625530747,0.223,4475.6,4475.5,0.8951]
[1759625531042,1.00479,4476.3,4476.0,0.1245]
[1759625531247,0.62492,4476.2,4476.1,0.7706]
[1759625531444,0.40192,4476.2,4476.1,0.7706]
[1759625531648,0.40192,4476.2,4476.1,5.7706]
[1759625531844,0.62492,4476.2,4476.1,5.7706]
[1759625532047,0.40191,4476.3,4476.1,5.7706]
[1759625532350,0.62491,4476.3,4476.2,0.7706]
[1759625536148,3.2078,4476.9,4476.8,0.7706]
[1759625536445,4.04926,4476.9,4476.8,0.7706]
[1759625536849,3.83266,4476.9,4476.8,0.7706]
[1759625537048,4.33241429,4476.9,4476.8,0.7706]
[1759625537350,3.93055429,4476.9,4476.8,0.7706]
[1759625538254,0.6108,4477.5,4477.4,0.5522]
[1759625538553,1.3475,4477.5,4477.4,0.5522]
[1759625539850,1.0504,4477.5,4477.4,0.7706]
[1759625540745,0.7227,4476.8,4476.5,0.1245]
[1759625540951,0.7227,4476.3,4476.2,0.3335]
[1759625541148,0.9457,4476.3,4476.2,0.3335]
[1759625541349,1.34762,4476.3,4476.2,0.3335]
[1759625541662,1.34762,4476.3,4476.2,0.5522]
[1759625547946,1.05052,4476.3,4476.2,0.7706]
[1759625548350,1.54950703,4476.3,4476.2,0.7706]
[1759625549854,1.84660703,4476.3,4476.2,0.7706]
[1759625550648,1.84660703,4476.3,4475.6,3.2078]
[1759625550649,0.61913,4476.1,4475.6,3.2078]
[1759625550854,0.7249,4476.1,4476.0,0.3248]
[1759625551154,1.12683,4476.1,4476.0,0.3248]
[1759625551355,1.62611957,4476.1,4476.0,0.3248]
[1759625552461,1.62611957,4476.1,4476.0,0.5342]
[1759625552758,1.62611957,4476.1,4476.0,0.6582]
[1759625552961,1.32861957,4476.1,4476.0,0.8689]
[1759625556760,1.11841957,4476.1,4476.0,0.8689]
[1759625558468,1.33201957,4476.1,4476.0,0.8689]
[1759625559863,0.90121957,4476.1,4476.0,0.8689]
[1759625560467,0.49928957,4476.1,4476.0,0.8689]
[1759625561066,0.49928957,4476.1,4476.0,5.8689]
[1759625562168,0.40192,4476.2,4476.1,0.7274]
[1759625562370,0.40192,4476.2,4476.1,3.9352]
[1759625562867,0.90243614,4476.2,4476.1,3.9352]
[1759625566372,0.90247972,4476.2,4476.1,3.9352]
[1759625567073,0.90247953,4476.2,4476.1,3.9352]
[1759625567676,0.40192,4476.2,4476.1,3.9352]
[1759625568372,0.9026485,4476.2,4476.1,3.9352]
[1759625569775,0.5007285,4476.2,4476.1,3.9352]
[1759625573375,1e-08,4476.2,4476.1,9.1582]
[1759625573576,0.40186,4476.9,4476.8,0.7274]
[1759625574871,0.60746,4476.9,4476.8,0.7274]
[1759625575180,0.2056,4476.9,4476.8,0.7274]
[1759625575366,0.7163,4476.9,4476.8,0.308]
[1759625575574,0.7163,4476.2,4476.1,3.4165]
[1759625575972,0.2056,4476.2,4476.1,3.9352]
[1759625576177,0.2056,4476.4,4476.3,1.12931]
[1759625576575,0.2056,4477.2,4477.1,0.2087]
[1759625576779,0.6422,4477.2,4477.1,0.5167]
[1759625577075,3.57683494,4477.2,4477.1,0.5167]
[1759625577579,4.27576494,4477.2,4477.1,0.5167]
[1759625578479,4.27576494,4477.2,4477.1,0.308]
[1759625578873,4.05276494,4477.2,4477.1,0.308]
[1759625579070,4.27576494,4477.2,4477.1,0.308]
[1759625579282,0.4192,4476.8,4476.7,0.7274]
[1759625579979,1.04407,4476.8,4476.7,0.7274]
[1759625580784,1.34117,4476.8,4476.7,0.7274]
[1759625581482,1.34117,4476.8,4476.5,0.1246]
[1759625581683,0.40189,4476.5,4476.2,0.5167]
[1759625581882,0.7163,4476.4,4476.3,0.308]
[1759625582278,0.7163,4476.4,4476.3,0.5167]
[1759625584775,0.7163,4476.4,4476.3,0.308]
[1759625585383,1.21472829,4476.4,4476.3,0.5238]
[1759625586686,1.21472829,4476.4,4476.3,0.308]
[1759625589689,1.12473,4476.1,4476.0,0.3408]
[1759625589894,1.84615829,4476.1,4476.0,0.3408]
[1759625590985,0.2139,4475.7,4475.6,0.3408]
[1759625591190,0.7228,4475.5,4475.4,3.2078]
[1759625591393,1.44422829,4475.5,4475.4,3.2078]
[1759625591594,1.44422829,4475.5,4475.4,3.7644]
[1759625592388,1.44422829,4475.5,4475.4,0.5566]
[1759625593297,1.44422829,4475.5,4475.4,0.3408]
[1759625594093,1.44422829,4475.5,4475.4,0.5566]
[1759625594396,1.14672829,4475.5,4475.4,0.7771]
[1759625594796,0.93532829,4475.5,4475.4,0.7771]
[1759625595297,0.72142829,4475.5,4475.4,4.38689]
[1759625595496,0.49842829,4475.5,4475.4,4.38689]
[1759625598101,0.223,4476.1,4476.0,0.9053]
[1759625598299,0.72070396,4476.1,4476.0,0.9053]
[1759625599495,0.49770396,4476.1,4476.0,0.9053]
[1759625609307,0.7228,4476.0,4475.7,0.3408]
[1759625609606,0.7228,4475.8,4475.7,0.3408]
[1759625609801,1.12477,4475.6,4475.5,0.3408]
[1759625610104,1.62247396,4475.6,4475.5,0.3408]
[1759625611204,0.7375,4475.5,4475.4,3.2078]
[1759625611405,0.49770396,4475.5,4475.4,3.9541]
[1759625611702,0.89967396,4475.7,4475.4,4.35609]
[1759625611902,0.71880396,4475.6,4475.5,0.5737]
[1759625612102,0.71880396,4475.6,4475.5,0.8825]
[1759625613708,0.93810396,4475.6,4475.5,0.8825]
[1759625614007,1.23610396,4475.6,4475.5,0.8825]
[1759625614506,0.93810396,4475.6,4475.5,0.8825]
[1759625620912,0.71880396,4475.6,4475.5,0.8825]
[1759625621114,0.72070396,4475.6,4475.5,0.8825]
[1759625622307,0.49770396,4475.6,4475.5,0.8825]
[1759625622515,0.93171557,4475.9,4475.8,0.7576]
[1759625622813,0.93171565,4475.9,4475.8,0.7576]
[1759625623215,0.93171565,4475.9,4475.8,1.15956]
[1759625624416,0.72251565,4475.9,4475.8,1.15956]
[1759625624628,0.49951565,4475.9,4475.8,1.15956]
[1759625629520,0.70871565,4475.9,4475.8,0.7576]
[1759625629719,0.49951565,4475.9,4475.8,0.7576]
[1759625630015,1.22701565,4475.9,4475.8,0.5456]
[1759625630215,1.22715014,4475.9,4475.8,0.5456]
[1759625632314,0.92915014,4475.9,4475.8,0.7576]
[1759625632913,0.49965014,4475.9,4475.8,0.7576]
[1759625636330,0.70885014,4475.9,4475.8,0.7576]
[1759625637925,0.70988248,4475.9,4475.8,0.7576]
[1759625639626,1.11183248,4475.9,4475.8,0.7576]
[1759625640323,1.11183248,4475.9,4475.8,1.15956]
[1759625640524,1.11183248,4475.9,4475.8,0.7576]
[1759625642022,1.63013248,4475.9,4475.8,0.5368]
[1759625642225,1.63013248,4475.9,4475.8,0.3248]
[1759625642725,1.63013248,4475.9,4475.8,0.5456]
[1759625644325,1.33213248,4475.9,4475.8,1.16806]
[1759625644520,1.33213248,4475.9,4475.8,0.7661]
[1759625645428,1.62923248,4475.9,4475.8,0.7661]
[1759625646527,1.33213248,4475.9,4475.8,0.7661]
[1759625650124,1.62923248,4475.9,4475.8,0.7661]
[1759625657236,1.62923248,4475.9,4475.8,0.3248]
[1759625665940,1.6298031,4475.9,4475.8,0.3248]
[1759625670642,1.6298031,4475.9,4475.8,0.5368]
[1759625670942,1.6298031,4475.9,4475.8,0.7552]
[1759625671134,1.3327031,4475.9,4475.8,0.7552]
[1759625671736,0.7104531,4475.9,4475.8,1.15716]
[1759625671931,0.5012531,4475.9,4475.8,1.15716]
[1759625673240,0.223,4476.4,4476.1,0.40193]
[1759625673443,0.50143338,4476.3,4476.2,0.7685]
[1759625677345,0.71823338,4476.3,4476.2,0.7685]
[1759625677548,0.94333338,4476.3,4476.2,0.7685]
[1759625678344,0.4419,4476.3,4476.2,0.7685]
[1759625678547,0.7393,4476.3,4476.2,0.7685]
[1759625679836,1.24023417,4476.3,4476.2,0.7685]
[1759625680649,1.24023417,4476.3,4475.9,3.2078]
[1759625680650,1.14124,4476.0,4475.9,3.2078]
[1759625680950,1.24016254,4476.0,4475.9,3.2078]
[1759625681547,1.24016254,4476.0,4475.9,3.5396]
[1759625683249,1.24016254,4476.0,4475.9,3.7608]
[1759625685052,1.24016254,4476.0,4475.9,3.9763]
[1759625685551,1.46316254,4476.0,4475.9,3.9763]
[1759625686052,1.16576254,4476.0,4475.9,0.7685]
[1759625686246,0.94066254,4476.0,4475.9,0.7685]
[1759625687554,0.94066254,4476.0,4475.9,3.9763]
[1759625687555,0.71766254,4476.0,4475.9,3.9763]
[1759625687750,0.50086254,4476.0,4475.9,3.9763]
[1759625690056,0.71766254,4476.0,4475.9,3.9763]
[1759625691256,0.94276254,4476.0,4475.9,3.9763]
[1759625691957,0.71766254,4476.0,4475.9,3.9763]
[1759625693655,0.50086254,4476.0,4475.9,3.9763]
[1759625696554,0.40191,4476.4,4476.3,0.4367]
[1759625696757,0.90313543,4476.4,4476.3,0.7685]
[1759625700769,1.11993543,4476.4,4476.3,0.7685]
[1759625701172,0.90313543,4476.4,4476.3,0.7685]
[1759625701472,1.11993543,4476.4,4476.3,0.7685]
[1759625702180,0.50122543,4476.4,4476.3,0.7685]
[1759625702871,0.40193,4476.1,4476.0,0.1238]
[1759625703073,0.4269,4475.6,4475.5,0.3618]
[1759625703276,0.4269,4475.6,4475.4,3.2078]
[1759625703277,1.12618,4475.5,4475.4,3.2078]
[1759625703475,1.22542543,4475.5,4475.4,3.7613]
[1759625703979,1.62740543,4475.5,4475.4,3.7613]
[1759625704172,1.22542543,4475.5,4475.4,3.7613]
[1759625704980,0.92812543,4475.5,4475.4,3.9724]
[1759625705170,1.22542543,4475.5,4475.4,3.9724]
[1759625706675,1.22542543,4475.5,4475.4,3.2078]
[1759625706879,0.7242,4475.1,4475.0,0.6781]
[1759625707178,0.92812543,4475.1,4475.0,0.8892]
[1759625712082,0.5203,4475.6,4475.0,0.8892]
[1759625712284,1.62667101,4475.5,4475.4,0.5535]
[1759625715786,1.62667101,4475.5,4475.4,0.3279]
[1759625715987,1.84967101,4475.5,4475.4,0.3279]
[1759625717189,1.62667101,4475.5,4475.4,0.3279]
[1759625717489,1.84967101,4475.5,4475.4,0.3279]
[1759625717689,1.84967101,4475.5,4475.4,0.5535]
[1759625718084,1.62667101,4475.5,4475.4,0.5535]
[1759625718391,1.12622,4475.2,4475.1,0.5535]
[1759625718889,1.12622,4475.2,4475.1,0.3279]
[1759625719090,1.34922,4475.2,4475.1,0.3279]
[1759625719689,1.34922,4475.2,4475.1,0.5535]
[1759625719889,1.12623,4475.0,4474.9,3.5357]
[1759625720285,1.12623,4475.0,4474.9,3.7613]
[1759625721584,0.82893,4475.0,4474.9,3.9724]
[1759625722693,1.12623,4475.0,4474.9,3.9724]
[1759625723190,1.12623,4475.0,4474.9,0.7646]
[1759625723687,1.12623,4475.0,4474.9,0.5535]
[1759625723893,3.96751593,4475.0,4474.9,0.3279]
[1759625724083,4.46915332,4475.0,4474.9,0.3279]
[1759625725386,4.46915332,4475.0,4474.9,0.5535]
[1759625725687,3.96751593,4475.0,4474.9,0.5535]
[1759625725884,4.46914518,4475.0,4474.9,0.5535]
[1759625727994,4.58094518,4475.0,4474.8,0.00159931]
[1759625728195,0.6499,4474.9,4474.8,0.00159931]
[1759625728399,0.9472,4474.9,4474.8,0.00159931]
[1759625728800,0.9472,4474.9,4474.8,0.32949931]
[1759625729100,1.44896641,4474.9,4474.8,0.32949931]
[1759625729897,1.44896641,4474.9,4474.8,0.00159931]
[1759625730902,4.37306085,4474.9,4474.8,0.00159931]
[1759625732700,7.58086085,4474.9,4474.8,0.00159931]
[1759625734308,0.713,4474.2,4474.1,0.5575]
[1759625734502,1.83986641,4474.2,4474.1,0.3343]
[1759625735298,1.84175015,4474.2,4474.1,0.3362827]
[1759625736099,1.54405015,4474.2,4474.1,0.7782827]
[1759625736306,1.14195015,4474.2,4474.1,0.7782827]
[1759625736609,0.93235015,4474.2,4474.1,0.7782827]
[1759625737407,1.14195015,4474.2,4474.1,0.7782827]
[1759625739907,0.91895015,4474.2,4474.1,0.7782827]
[1759625740211,1.14195015,4474.2,4474.1,0.7782827]
[1759625740403,1.43965015,4474.2,4474.1,0.3362827]
[1759625740601,1.43965015,4474.2,4474.1,0.5594827]
[1759625742310,0.71488374,4474.2,4474.1,0.7782827]
[1759625742511,0.64018374,4474.2,4474.1,0.7782827]
[1759625743309,1.14182037,4474.2,4474.1,0.7782827]
[1759625743608,0.64018374,4474.2,4474.1,0.7782827]
[1759625744914,0.22488374,4474.2,4474.1,0.7782827]
[1759625745212,0.00188374,4474.2,4474.1,0.7782827]
[1759625753912,0.00188374,4474.2,4474.1,3.9860827]
[1759625758021,0.40398374,4474.2,4474.1,3.9860827]
[1759625758222,0.00188374,4474.2,4474.1,3.9860827]
[1759625758824,0.40398374,4474.2,4474.1,3.9860827]
[1759625759316,0.90758719,4474.2,4474.1,3.9860827]
[1759625759820,0.90758719,4474.2,4474.1,0.7782827]
[1759625760013,0.90758719,4474.2,4474.1,3.9860827]
[1759625760421,1.11328719,4474.2,4474.1,3.9860827]
[1759625760921,0.90758719,4474.2,4474.1,3.9860827]
[1759625765622,1.11448719,4474.2,4474.1,3.9860827]
[1759625770234,1.11448719,4474.2,4474.1,0.7782827]
[1759625771938,0.90758719,4474.2,4474.1,0.7782827]
[1759625772940,1.62518719,4474.2,4474.1,0.7782827]
[1759625773839,1.62518719,4474.2,4474.1,0.5594827]
[1759625775539,1.62518719,4474.2,4474.1,0.3362827]
[1759625777838,1.62518719,4474.2,4474.1,0.0019827]
[1759625778142,4.57145738,4474.2,4474.1,0.0019827]
[1759625781341,9.57145738,4474.2,4474.1,0.0019827]
[1759625785145,9.79445738,4474.2,4474.1,0.0019827]
[1759625787947,9.57145738,4474.2,4474.1,0.0019827]
[1759625788148,9.79445738,4474.2,4474.1,0.0019827]
[1759625788343,9.79445738,4474.2,4473.4,3.5268]
[1759625788642,9.79445738,4474.2,4473.4,0.319]
[1759625788643,1.11976,4473.5,4473.4,0.319]
[1759625788948,4.70982308,4473.5,4473.4,0.319]
[1759625789442,4.70982308,4473.5,4473.4,0.32105502]
[1759625790946,4.70982308,4473.5,4473.4,0.00205502]
[1759625791748,4.70982308,4473.5,4473.4,0.31965502]
[1759625794253,0.92350345,4473.5,4473.4,0.75785502]
[1759625794441,0.71050345,4473.5,4473.4,0.75785502]
[1759625794752,0.93350345,4473.5,4473.4,0.75785502]
[1759625797655,0.93109442,4473.5,4473.4,0.75785502]
[1759625802753,1.33325442,4473.5,4473.4,0.75785502]
[1759625805166,0.70809442,4473.5,4473.4,0.75785502]
[1759625805365,0.93109442,4473.5,4473.4,0.75785502]
[1759625805565,1.33325442,4473.5,4473.4,0.75785502]
[1759625809370,1.55995442,4473.5,4473.4,0.75785502]
[1759625810671,1.85735442,4473.5,4473.4,0.75785502]
[1759625812070,1.55995442,4473.5,4473.4,0.75785502]
[1759625812466,1.15779442,4473.5,4473.4,0.75785502]
[1759625813373,0.93109442,4473.5,4473.4,0.75785502]
[1759625814774,1.33325442,4473.5,4473.4,0.75785502]
[1759625820278,0.70809442,4473.5,4473.4,0.75785502]
[1759625820580,0.50119442,4473.5,4473.4,0.75785502]
[1759625821880,0.70689442,4473.5,4473.4,0.75785502]
[1759625825486,1.20959442,4473.5,4473.4,0.75785502]
[1759625825676,1.20959442,4473.5,4473.4,0.53855502]
[1759625828098,0.91189442,4473.5,4473.4,0.75275502]
[1759625834902,1.31405442,4473.5,4473.4,0.75275502]
[1759625835306,0.91189442,4473.5,4473.4,0.75275502]
[1759625835802,1.31405442,4473.5,4473.4,0.75275502]
[1759625838104,0.91189442,4473.5,4473.4,0.75275502]
[1759625838302,0.91189442,4473.5,4473.4,1.15492502]
[1759625838502,0.91189442,4473.5,4473.4,0.75275502]
[1759625838700,0.50119442,4473.5,4473.4,1.15492502]
[1759625839203,0.40214,4473.8,4473.7,0.4371]
[1759625839403,0.50175153,4473.8,4473.7,0.7461]
[1759625841304,0.62631,4474.1,4474.0,0.5713]
[1759625841494,1.12548417,4474.1,4474.0,0.8803]
[1759625842400,1.33048417,4474.1,4474.0,0.8803]
[1759625842701,0.49917417,4474.1,4474.0,0.8803]
[1759625843105,0.00188374,4474.2,4474.1,1.14821]
[1759625846703,0.62623,4475.0,4474.9,0.7461]
[1759625847008,1.12502721,4475.0,4474.9,0.7461]
[1759625847305,1.62772721,4475.0,4474.9,0.309]
[1759625847806,4.83713166,4475.0,4474.9,0.309]
[1759625848106,1.12901,4474.1,4474.0,0.6661]
[1759625850312,0.7269,4474.1,4474.0,0.6661]
[1759625851105,0.4292,4474.1,4474.0,0.8803]
[1759625853406,0.7269,4474.1,4474.0,0.8803]
[1759625860015,0.7269,4474.1,4473.6,0.3106]
[1759625860312,0.2977,4474.0,4473.6,0.3106]
[1759625860713,0.2183,4473.7,4473.6,0.7562]
[1759625860902,0.4458,4473.7,4473.6,0.7562]
[1759625861101,0.7435,4473.7,4473.6,0.7562]
[1759625862918,0.2183,4473.7,4473.6,0.7562]
[1759625863722,3.2078,4474.4,4473.5,0.1342]
[1759625863723,0.84788,4474.4,4474.3,0.7562]
[1759625863906,1.34227345,4474.4,4474.3,0.7562]
[1759625864217,1.56977345,4474.4,4474.3,0.7562]
[1759625868017,1.11927345,4474.4,4474.3,0.7562]
[1759625868223,1.34227345,4474.4,4474.3,0.7562]
[1759625869619,0.71719345,4474.4,4474.3,0.7562]
[1759625869815,1.11927345,4474.4,4474.3,0.7562]
[1759625871229,1.64447345,4474.4,4474.3,0.7562]
[1759625877032,1.34677345,4474.4,4474.3,0.7562]
[1759625878935,1.11927345,4474.4,4474.3,0.7562]
[1759625879433,0.71719345,4474.4,4474.3,0.7562]
[1759625880431,0.49889345,4474.4,4474.3,0.7562]
[1759625884238,0.21690445,4475.0,4474.9,0.4478]
[1759625884439,0.21690445,4475.0,4474.9,0.7643]
[1759625884440,0.93872052,4475.0,4474.9,0.7643]
[1759625884634,0.71572052,4475.0,4474.9,0.7643]
[1759625884831,0.50042052,4475.0,4474.9,0.7643]
[1759625886339,0.00160445,4475.0,4474.9,0.7643]
[1759625889842,0.00160445,4475.0,4474.9,5.7643]
[1759625892350,1.12224,4476.0,4475.9,0.7643]
[1759625892647,1.62006576,4476.0,4475.9,0.7643]
[1759625893043,1.32246576,4476.0,4475.9,0.7643]
[1759625893242,1.3247387,4476.0,4475.9,0.7643]
[1759625894142,0.9227987,4476.0,4475.9,0.7643]
[1759625894348,0.7153987,4476.0,4475.9,0.7643]
[1759625895546,0.5000987,4476.0,4475.9,0.7643]
[1759625895846,0.00227294,4476.0,4475.9,0.7643]
[1759625908857,0.00227294,4476.0,4475.9,1.16625]
[1759625909555,0.40421294,4476.0,4475.9,0.7643]
[1759625909753,0.61951294,4476.0,4475.9,0.7643]
[1759625911659,1.12371294,4476.0,4475.9,0.3165]
[1759625911862,1.62110494,4476.0,4475.9,0.3165]
[1759625912157,0.82794,4474.9,4474.8,0.333]
[1759625912367,1.12476,4474.6,4474.5,0.6823]
[1759625912566,0.92326363,4474.6,4474.5,0.894]
[1759625913368,1.22086363,4474.6,4474.5,0.6823]
[1759625913569,1.22086363,4474.6,4474.5,0.5567]
[1759625914270,1.22086363,4474.6,4474.5,0.9045]
[1759625914872,1.22087757,4474.6,4474.5,0.9045]
[1759625916877,0.92327757,4474.6,4474.5,0.9045]
[1759625919471,0.92327757,4474.6,4474.5,4.1123]
[1759625921068,0.223,4475.1,4475.0,0.1353]
[1759625921271,1.54714364,4475.1,4475.0,0.9141]
[1759625921775,1.84474364,4475.1,4475.0,0.9141]
[1759625922581,1.34802,4475.1,4475.0,0.9141]
[1759625922973,1.05042,4475.1,4475.0,0.9141]
[1759625923373,1.34802,4475.1,4475.0,0.9141]
[1759625925178,1.34802,4475.1,4475.0,0.7016]
[1759625925373,1.34802,4475.1,4475.0,0.5663]
[1759625926279,1.34802,4475.1,4475.0,0.3393]
[1759625927977,1.34802,4475.1,4475.0,0.5663]
[1759625933080,1.34802,4475.1,4473.2,1.00547]
[1759625933081,0.60821,4474.1,4474.0,4.1142]
[1759625933287,0.82751,4474.1,4474.0,4.1142]
[1759625933785,0.2061,4474.1,4474.0,4.1142]
[1759625934489,0.723,4474.1,4474.0,3.2078]
[1759625934678,1.12514,4473.8,4473.7,0.3393]
[1759625934882,0.723,4473.5,4473.3,3.2078]
[1759625935083,0.69977,4473.4,4473.3,3.2078]
[1759625935385,1.12523,4472.8,4472.7,3.7741]
[1759625936283,1.12749409,4472.8,4472.7,3.77698162]
[1759625936983,1.12749409,4472.8,4471.5,0.1353]
[1759625936984,1.12527,4472.3,4472.2,0.3393]
[1759625937282,1.34827,4472.3,4472.2,0.5663]
[1759625937989,1.34827,4472.3,4472.2,0.56888868]
[1759625938688,1.12527,4472.3,4472.2,0.56888868]
[1759625938892,1.34827,4472.3,4472.2,0.56888868]
[1759625939283,0.40226,4472.5,4472.2,0.78138868]
[1759625939479,0.223,4472.4,4472.3,0.3393]
[1759625939684,0.223,4472.4,4472.3,0.7788]
[1759625940285,0.20836409,4472.8,4472.7,0.7788]
[1759625940486,0.43136409,4472.8,4472.7,0.7788]
[1759625941192,0.65066409,4472.8,4472.7,0.7788]
[1759625941494,0.94826409,4472.8,4472.7,0.3393]
[1759625941990,0.94826409,4472.8,4472.7,0.5663]
[1759625942189,0.65066409,4472.8,4472.7,0.7788]
[1759625942586,0.43136409,4472.8,4472.7,0.7788]
[1759625943389,0.65326409,4472.8,4472.7,0.7788]
[1759625943583,0.95106409,4472.8,4472.7,0.7788]
[1759625943980,0.65326409,4472.8,4472.7,0.7788]
[1759625950698,0.00226409,4472.8,4472.7,0.7788]
[1759625950899,0.44846409,4472.8,4472.7,0.7788]
[1759625952703,0.22546409,4472.8,4472.7,0.7788]
[1759625952905,0.44846409,4472.8,4472.7,0.7788]
[1759625953902,0.00226409,4472.8,4472.7,0.7788]
[1759625955403,0.46615,4473.7,4473.6,0.7591]
[1759625955804,0.68935,4473.7,4473.6,0.7591]
[1759625956294,0.69158472,4473.7,4473.6,0.7591]
[1759625956702,0.00223472,4473.7,4473.6,0.7591]
[1759625958509,0.00223472,4473.7,4473.6,5.7591]
[1759625960409,0.44733472,4473.7,4473.6,0.7591]
[1759625960613,0.74513472,4473.7,4473.6,0.7591]
[1759625960804,0.44733472,4473.7,4473.6,0.7591]
[1759625962710,0.74513472,4473.7,4473.6,0.7591]
[1759625963401,0.96813472,4473.7,4473.6,0.3397]
[1759625963608,0.96813472,4473.7,4473.0,0.1252]
[1759625963609,0.4451,4473.2,4473.1,0.3397]
[1759625963817,1.36809,4473.2,4473.1,0.3397]
[1759625964014,1.86536422,4473.2,4473.1,0.3397]
[1759625965515,1.86536422,4473.2,4473.1,0.5493]
[1759625967216,1.56756422,4473.2,4473.1,0.7591]
[1759625968721,1.34566422,4473.2,4473.1,0.7591]
[1759625969809,1.56756422,4473.2,4473.1,0.7591]
[1759625972717,1.07029,4473.2,4473.1,0.7591]
[1759625973623,1.36809,4473.2,4473.1,0.7591]
[1759625973815,1.36809,4473.2,4473.1,0.5493]
[1759625974323,1.36809,4473.2,4473.1,0.3397]
[1759625976419,1.86607116,4473.2,4473.1,0.3397]
[1759625977519,1.86607116,4473.2,4473.1,0.5458]
[1759625977725,0.49798116,4473.2,4473.1,0.7509]
[1759625978019,0.62517,4473.4,4473.3,0.7223]
[1759625978221,1.12320059,4473.4,4473.3,0.7223]
[1759625978419,1.34650059,4473.4,4473.3,0.7223]
[1759625979028,0.94433059,4473.4,4473.3,0.7223]
[1759625979319,0.223,4473.4,4473.3,0.7223]
[1759625979824,0.4463,4473.4,4473.3,0.7223]
[1759625982525,0.94468661,4473.4,4473.3,0.7223]
[1759625983428,0.72138661,4473.4,4473.3,0.7223]
[1759625984224,0.49838661,4473.4,4473.3,0.7223]
[1759625985426,0.72168661,4473.4,4473.3,0.7223]
[1759625986728,0.49838661,4473.4,4473.3,0.7223]
[1759625988929,0.72168661,4473.4,4473.3,0.7223]
[1759625989527,0.49838661,4473.4,4473.3,0.7223]
[1759625989831,0.72168661,4473.4,4473.3,0.7223]
[1759625992430,0.49838661,4473.4,4473.3,0.7223]
[1759625996122,0.72168661,4473.4,4473.3,0.7223]
[1759625998135,0.49838661,4473.4,4473.3,0.7223]
[1759625998333,0.49838661,4473.4,4473.3,1.12448]
[1759625999233,0.49838661,4473.4,4473.3,0.7223]
[1759626000227,0.00223472,4473.7,4473.6,0.40215]
[1759626000431,0.00223472,4473.7,4473.6,3.9301]
[1759626001130,0.22553472,4473.7,4473.6,3.9301]
[1759626001734,0.00223472,4473.7,4473.6,3.9301]
[1759626006733,0.72593472,4473.7,4473.6,3.725]
[1759626006933,0.72593472,4473.7,4473.6,0.3111]
[1759626007132,0.94893472,4473.7,4473.6,0.3111]
[1759626007334,0.2173,4473.1,4473.0,4.0973]
[1759626007535,0.8282,4473.1,4473.0,4.0973]
[1759626007741,1.1259,4473.1,4473.0,3.6716]
[1759626008042,1.1259,4473.1,4473.0,4.0973]
[1759626008043,0.8282,4473.1,4473.0,4.0973]
[1759626008242,1.1259,4473.1,4473.0,3.6716]
[1759626009142,1.1259,4473.1,4473.0,0.4638]
[1759626009531,1.1259,4473.1,4473.0,0.6787]
[1759626011746,1.1259,4473.1,4473.0,0.3396]
[1759626012341,0.49560225,4473.1,4473.0,0.8987]
[1759626013838,0.71860225,4473.1,4473.0,0.8987]
[1759626015947,0.49560225,4473.1,4473.0,0.8987]
[1759626016145,0.223,4473.4,4473.3,0.4257]
[1759626016343,0.223,4473.6,4473.5,0.1334]
[1759626016638,0.49558484,4473.6,4473.5,0.8987]
[1759626016846,0.71858484,4473.6,4473.5,0.8987]
[1759626017250,0.71858484,4473.6,4473.5,4.1065]
[1759626017847,0.223,4473.6,4473.5,4.1065]
[1759626018043,0.71860217,4473.6,4473.5,4.1065]
[1759626018545,1.14460217,4473.6,4473.5,0.6879]
[1759626018747,1.44230217,4473.6,4473.5,0.6879]
[1759626019550,1.21930217,4473.6,4473.5,0.6879]
[1759626019849,1.44230217,4473.6,4473.5,0.6879]
[1759626020345,1.44230217,4473.6,4473.5,0.5545]
[1759626021852,1.44230217,4473.6,4473.5,0.3396]
[1759626022749,1.21930217,4473.6,4473.5,0.3396]
[1759626022950,1.44230217,4473.6,4473.5,0.3396]
[1759626023752,1.44230217,4473.6,4473.5,0.5545]
[1759626023946,1.44230217,4473.6,4473.5,0.6879]
[1759626028054,0.92160217,4473.6,4473.5,0.8987]
[1759626028258,0.71860217,4473.6,4473.5,0.8987]
[1759626031453,0.93550217,4473.6,4473.5,0.8987]
[1759626031660,1.15290217,4473.6,4473.5,0.8987]
[1759626032956,1.55505217,4473.6,4473.5,0.8987]